[Event "Satka Autumn 2018"]
[Site "Satka"]
[Date "2018.09.12"]
[Round "2"]
[White "Stroganova, Karina"]
[Black "Nosacheva, Mariya"]
[Result "1-0"]
[ECO "A48"]
[WhiteElo "1711"]
[BlackElo "2073"]
[Annotator "NA"]
[PlyCount "55"]
[EventDate "2018.09.11"]
[EventType "swiss"]
[EventCountry "RUS"]
[SourceTitle "playchess.com"]
[Source "ChessBase"]
[SourceQuality "1"]
[TimeControl "40/5400+30:1800+30"]

{[%evp 8,35,10,32767,32767,32767,4,-26,8,-14,-19,-14,-12,-46,-36,-37,-33,-27,-22,-33,-33,-33,53,-4,72,87,103,85,572,697]} 1. d4 {[%emt 0:00:00]} Nf6 {[%emt 0:00:00]} 2. Nf3 {[%emt 0:00:00]} g6 {[%emt 0:00:00]} 3. Bf4 {[%emt 0:00:00]} Bg7 {[%emt 0:00:00]} 4. e3 {[%emt 0:00:10]} d6 {[%emt 0:00:10] LiveBook: 1195 Games} 5. Be2 {[%emt 0:00:42]} O-O {[%emt 0:00:09]} 6. O-O {[%emt 0:00:06]} Nc6 {[%emt 0:05:31] A48: 1 d4 Nf6 2 Nf3 g6: Torre, London and Colle Systems} (6... c5 7. c3 b6 8. h3 Bb7 9. Nbd2 Nbd7 10. a4 a6 11. Bh2 Ne4 12. Nxe4 Bxe4 13. Bd3 Bxd3 14. Qxd3 Qc7 15. Rfd1 Rfc8 16. Qe2 Qb7 17. e4 cxd4 18. cxd4 Rc7 19. e5 {1-0 (61) Vachier Lagrave,M (2779)-Grischuk,A (2766) Saint Louis 2018}) 7. c4 {[%emt 0:01:32]} Nh5 {[%emt 0:01:49]} 8. Bg5 {[%emt 0:00:35]} h6 {[%emt 0:01:31]} 9. Bh4 {[%emt 0:00:18]} g5 {[%emt 0:01:33]} 10. Nfd2 {[%emt 0:00:30]} Nf4 {[%emt 0:00:37]} 11. exf4 {[%emt 0:02:45]} gxh4 {[%emt 0:02:34]} 12. Nf3 {[%emt 0:02:09]} h3 {[%emt 0:07:28]} 13. Nc3 $146 {[%emt 0:01:33]} ({Predecessor:} 13. g3 e5 14. fxe5 dxe5 15. dxe5 Nxe5 {0-1 (33) Thinon,L (1777)-Bedouin,X (2403) Saint Affrique 2010}) 13... hxg2 {[%emt 0:00:48]} 14. Kxg2 {[%emt 0:01:01]} Bg4 {[%emt 0:04:15]} ({Of course not} 14... Qd7 $6 15. Kh1 $14) (14... e5 $15) 15. d5 {[%emt 0:03:40]} Nb8 {[%emt 0:03:09]} (15... Bxf3+ $1 $11 {keeps the balance.} 16. Bxf3 Nd4) 16. Rg1 {[%emt 0:00:54]} Kh8 {[%emt 0:04:59]} 17. Kh1 {[%emt 0:01:53]} Qd7 $18 {[%emt 0:07:33] [#]} (17... Bxf3+ $16 {is a better chance.} 18. Bxf3 Bxc3) 18. Nh4 $1 {[%emt 0:04:08]} Bxe2 {[%emt 0:00:37]} 19. Qxe2 {[%emt 0:00:28]} Rg8 {[%emt 0:11:31]} 20. Qh5 {[%emt 0:01:03]} e6 {[%emt 0:07:24]} 21. Rg3 {[%emt 0:01:34]} Qe7 {[%emt 0:03:59]} 22. Rag1 {[%emt 0:04:35]} Kh7 {[%emt 0:06:00]} 23. Ne4 {[%emt 0:02:16]} f6 {[%emt 0:03:21]} 24. Qg6+ {[%emt 0:04:49]} Kh8 {[%emt 0:00:05]} 25. Nxf6 {[%emt 0:01:01]} Qxf6 {[%emt 0:00:07]} 26. Qxf6 {[%emt 0:00:12]} Bxf6 {[%emt 0:00:04]} 27. Rxg8+ {[%emt 0:00:11]} Kh7 {[%emt 0:00:04]} 28. dxe6 {[%emt 0:00:49]} 1-0

[Event "Satka Autumn 2018"]
[Site "Satka"]
[Date "2018.09.12"]
[Round "2"]
[White "Sosnina, Nadezhda"]
[Black "Telelyukhina, Elizaveta"]
[Result "1-0"]
[ECO "B06"]
[WhiteElo "1659"]
[BlackElo "1403"]
[Annotator "NA"]
[PlyCount "63"]
[EventDate "2018.09.11"]
[EventType "swiss"]
[EventCountry "RUS"]
[SourceTitle "playchess.com"]
[Source "ChessBase"]
[SourceQuality "1"]
[TimeControl "40/5400+30:1800+30"]

1. e4 {[%emt 0:00:00]} g6 {[%emt 0:00:00]} 2. d4 {[%emt 0:00:00]} Bg7 {[%emt 0:00:00]} 3. Nc3 {[%emt 0:00:00]} c6 {[%emt 0:00:02]} 4. Bc4 {[%emt 0:01:11]} d6 {[%emt 0:00:22]} 5. Qf3 {[%emt 0:02:00]} e6 {[%emt 0:03:47]} 6. Nge2 {[%emt 0:00:29]} Ne7 {[%emt 0:01:19]} 7. Bg5 {[%emt 0:02:32]} O-O {[%emt 0:05:21]} 8. Bf6 {[%emt 0:03:10]} Qc7 {[%emt 0:01:59]} 9. h4 {[%emt 0:00:55]} d5 {[%emt 0:02:22]} 10. h5 {[%emt 0:02:38]} h6 {[%emt 0:07:04]} 11. Bd3 {[%emt 0:10:32]} g5 {[%emt 0:06:42]} 12. e5 {[%emt 0:01:17]} Bxf6 {[%emt 0:14:31]} 13. Qxf6 {[%emt 0:02:59]} Nf5 {[%emt 0:00:43]} 14. Bxf5 {[%emt 0:00:59]} exf5 {[%emt 0:00:12]} 15. Qxh6 {[%emt 0:00:06]} Qd8 {[%emt 0:00:41]} 16. Ng1 {[%emt 0:06:31]} Re8 {[%emt 0:04:07]} 17. Nf3 {[%emt 0:01:05]} f6 {[%emt 0:00:24]} 18. Qg6+ {[%emt 0:01:32]} Kh8 {[%emt 0:00:19]} 19. h6 {[%emt 0:00:24]} Qe7 {[%emt 0:02:25]} 20. O-O-O {[%emt 0:00:24]} fxe5 {[%emt 0:00:41]} 21. Nxg5 {[%emt 0:02:58]} Rf8 {[%emt 0:00:58]} 22. dxe5 {[%emt 0:00:22]} f4 {[%emt 0:00:44]} 23. e6 {[%emt 0:00:56]} Rf6 {[%emt 0:00:27]} 24. Nf7+ Rxf7 {[%emt 0:00:29]} 25. exf7 {[%emt 0:00:19]} Qf8 {[%emt 0:00:20]} 26. h7 Qg7 {[%emt 0:00:23]} 27. Qxg7+ {[%emt 0:00:44]} Kxg7 {[%emt 0:00:11]} 28. h8=Q+ {[%emt 0:00:07]} Kxf7 {[%emt 0:00:09]} 29. Rde1 {[%emt 0:01:04]} Bd7 {[%emt 0:00:28]} 30. Rh7+ {[%emt 0:00:27]} Kg6 {[%emt 0:00:11]} 31. Rg7+ {[%emt 0:00:14]} Kf5 {[%emt 0:00:07]} 32. Qf8# {[%emt 0:00:07]} 1-0